bitfinex-derivatives/quotes_SOLF0:USTF0_20241227
["timestamp","ask_amount","ask_price","bid_price","bid_amount"]
[1735294054939,3.64,193.58,193.38,5.1945]
[1735294055140,2.5869,193.51,193.45,2.5875]
[1735294055345,41.32305797,193.57,193.45,2.5875]
[1735294055642,2.5868,193.51,193.45,2.5875]
[1735294056543,2.5868,193.51,193.38,5.1945]
[1735294056544,2.5873,193.48,193.38,5.1945]
[1735294056746,28.70195084,193.55,193.38,5.1945]
[1735294057246,28.70195084,193.55,193.44,2.5876]
[1735294057444,28.70195084,193.55,193.38,5.1945]
[1735294057745,2.5865,193.54,193.49,2.587]
[1735294057948,28.70195084,193.55,193.44,3.64]
[1735294058141,7.1614033,193.54,193.44,3.64]
[1735294058348,9.7478033,193.54,193.44,3.64]
[1735294058946,2.5866,193.52,193.44,3.64]
[1735294059144,28.70195084,193.57,193.44,3.64]
[1735294060743,28.70195084,193.57,193.47,2.5872]
[1735294060946,28.70195084,193.57,193.44,3.64]
[1735294061139,28.70195084,193.57,193.38,1.5545]
[1735294061346,0.80308437,193.56,193.38,1.5545]
[1735294061538,0.80308437,193.56,193.38,4.143]
[1735294061539,2.5878,193.44,193.38,4.143]
[1735294061737,3.64,193.49,193.38,1.5545]
[1735294061940,1.5678,193.48,193.38,1.5545]
[1735294062137,3.153,193.48,193.38,1.5545]
[1735294062544,3.153,193.48,193.37,5.2989]
[1735294062747,3.153,193.48,193.37,3.64]
[1735294063846,5.7402,193.48,193.4,2.5882]
[1735294064048,5.7402,193.48,193.37,3.64]
[1735294064049,3.153,193.48,193.37,3.64]
[1735294064640,2.5876,193.46,193.39,2.5882]
[1735294064844,2.5876,193.46,193.37,3.64]
[1735294065353,2.5877,193.44,193.38,2.5884]
[1735294065549,3.153,193.48,193.34,3.64]
[1735294065749,3.153,193.48,193.33,1.6357]
[1735294066651,2.588,193.42,193.36,2.5888]
[1735294066850,3.153,193.48,193.33,1.6357]
[1735294067344,2.5878,193.44,193.38,2.5884]
[1735294067745,2.5878,193.44,193.35,3.64]
[1735294067942,2.5874,193.46,193.41,2.5881]
[1735294068152,3.153,193.48,193.35,3.64]
[1735294068549,2.5876,193.45,193.39,2.5883]
[1735294068851,3.153,193.48,193.35,3.64]
[1735294069251,2.5875,193.46,193.35,3.64]
[1735294069550,0.80262356,193.45,193.27,27.23453475]
[1735294069744,4.44262356,193.44,193.27,27.23453475]
[1735294070052,3.64,193.44,193.31,2.5894]
[1735294070654,2.5886,193.38,193.31,2.5894]
[1735294071153,2.5886,193.38,193.25,1.6282]
[1735294071352,2.5886,193.38,193.32,2.5893]
[1735294072450,2.5886,193.38,193.2,27.23453475]
[1735294072756,6.9046,193.37,193.2,27.23453475]
[1735294073055,2.5895,193.31,193.25,2.5902]
[1735294073251,2.5895,193.31,193.18,3.62818116]
[1735294073658,2.5895,193.31,193.19,3.1827]
[1735294074556,2.5893,193.33,193.2,3.62]
[1735294074751,3.2646,193.37,193.21,1.5833]
[1735294074946,3.2646,193.37,193.25,2.5901]
[1735294075151,2.589,193.35,193.26,3.62]
[1735294076256,2.589,193.34,193.26,3.62]
[1735294076755,2.589,193.34,193.23,3.62]
[1735294077748,3.2646,193.37,193.23,3.62]
[1735294078349,3.2646,193.37,193.09,27.23453475]
[1735294078552,0.80373226,193.36,193.11,4.7021]
[1735294078947,0.80373226,193.36,193.13,2.5918]
[1735294079853,2.5908,193.22,193.14,2.5917]
[1735294080355,3.62,193.27,193.11,8.3221]
[1735294081856,3.62,193.27,193.11,4.7021]
[1735294081857,3.2015,193.26,193.11,4.7021]
[1735294082056,3.2015,193.26,193.12,3.62]
[1735294082654,2.591,193.2,193.06,2.5927]
[1735294082958,3.62,193.19,193.0,3.62]
[1735294083158,6.7652,193.18,193.0,3.62]
[1735294083952,6.7652,193.18,192.99,1.6326]
[1735294084160,6.7652,193.18,193.0,3.62]
[1735294084657,6.7652,193.18,193.01,3.62]
[1735294084856,1.0716,193.17,193.01,3.62]
[1735294085356,1.0716,193.17,193.04,2.593]
[1735294085957,1.0716,193.17,193.01,3.62]
[1735294086148,6.7652,193.18,193.01,3.62]
[1735294086654,2.5914,193.17,193.01,3.62]
[1735294087260,2.5915,193.16,193.01,3.62]
[1735294088060,2.5915,193.16,193.1,2.5922]
[1735294088657,6.7652,193.18,193.1,2.5922]
[1735294088962,2.5916,193.15,193.1,2.5922]
[1735294089959,5.7365,193.18,193.12,2.5919]
[1735294090158,3.62,193.24,193.1,3.62]
[1735294090365,6.8265,193.27,193.11,3.2711]
[1735294090657,2.5904,193.24,193.11,3.2711]
[1735294091262,2.5904,193.24,193.17,2.5912]
[1735294091865,2.5904,193.24,193.11,3.2711]
[1735294092064,2.5904,193.24,193.18,2.5912]
[1735294095363,6.8265,193.27,193.11,3.2711]
[1735294095556,3.2065,193.27,193.11,3.2711]
[1735294096066,2.5902,193.26,193.11,3.2711]
[1735294096260,3.2065,193.27,193.11,3.2711]
[1735294097165,2.5903,193.25,193.19,2.5909]
[1735294097365,2.5903,193.25,193.11,3.2711]
[1735294097966,3.2065,193.27,193.11,3.2711]
[1735294098264,2.5902,193.26,193.11,3.2711]
[1735294099463,3.2065,193.27,193.11,3.2711]
[1735294099664,3.2065,193.27,193.19,2.591]
[1735294099964,3.2065,193.27,193.11,3.2711]
[1735294100166,3.2065,193.27,193.2,2.5909]
[1735294100464,3.2065,193.27,193.11,3.2711]
[1735294101367,2.5906,193.23,193.17,2.5912]
[1735294102162,3.2065,193.27,193.11,3.2711]
[1735294102867,3.2065,193.27,193.14,2.5917]
[1735294102868,2.5906,193.23,193.14,2.5917]
[1735294103067,3.62,193.23,193.14,2.5917]
[1735294103270,3.62,193.23,193.11,3.2711]
[1735294103767,6.2106,193.23,193.17,2.5912]
[1735294103965,3.62,193.23,193.11,3.2711]
[1735294105572,3.62,193.23,193.18,2.5911]
[1735294106765,3.62,193.23,193.16,2.5914]
[1735294108674,2.5908,193.21,193.16,2.5914]
[1735294109673,3.2065,193.27,193.11,3.2711]
[1735294109876,3.62,193.26,193.11,3.2711]
[1735294110272,2.5905,193.23,193.18,2.5911]
[1735294111670,2.5908,193.21,193.11,3.2711]
[1735294112978,3.62,193.26,193.11,3.2711]
[1735294113178,2.5909,193.2,193.15,2.5915]
[1735294113582,3.62,193.26,193.11,3.2711]
[1735294114270,3.62,193.26,193.14,2.5917]
[1735294114876,10.7814033,193.26,193.11,3.2711]
[1735294115076,10.7814033,193.26,193.15,2.5916]
[1735294115683,2.5906,193.23,193.15,2.5916]
[1735294115880,10.7814033,193.26,193.15,2.5916]
[1735294116077,10.7814033,193.26,193.02,53.86]
[1735294116382,10.7814033,193.26,193.09,2.5924]
[1735294116383,2.5918,193.14,193.09,2.5924]
[1735294117685,2.5919,193.13,193.03,4.6898]
[1735294118078,2.5919,193.13,193.07,2.5925]
[1735294118886,3.1625,193.17,193.07,2.5925]
[1735294119184,2.592,193.12,193.07,2.5925]
[1735294119779,2.592,193.12,193.03,4.6898]
[1735294119986,2.592,193.12,193.08,2.5925]
[1735294120283,2.592,193.12,193.03,4.6898]
[1735294121084,3.1625,193.17,193.03,4.6898]
[1735294121387,2.5923,193.1,193.05,2.5928]
[1735294122084,2.5921,193.11,193.06,2.5927]
[1735294122584,2.5923,193.1,193.05,2.5929]
[1735294124389,10.3239033,193.17,192.9,27.23453475]
[1735294124589,10.3239033,193.17,192.91,9.36603387]
[1735294124783,10.3239033,193.17,192.91,8.4129]
[1735294124984,2.5926,193.08,193.02,2.5933]
[1735294126384,2.5924,193.1,192.98,3.62]
[1735294126592,3.62,193.11,192.95,3.62]
[1735294126892,3.62,193.11,193.01,2.5934]
[1735294127197,2.5931,193.04,192.95,3.62]
[1735294128084,3.62,193.07,192.9,4.6504]
[1735294128490,3.2559,193.06,192.9,4.6504]
[1735294128690,3.2559,193.06,192.9,8.2704]
[1735294128892,2.5934,193.02,192.95,2.5943]
[1735294129091,3.2559,193.06,192.95,2.5943]
[1735294129493,2.5932,193.03,192.95,2.5943]
[1735294129691,3.2559,193.06,192.95,2.5943]
[1735294129887,3.2559,193.06,192.96,2.5941]
[1735294130097,2.5935,193.02,192.96,2.5941]
[1735294131095,3.2559,193.06,192.9,8.2704]
[1735294131400,2.5936,193.01,192.95,2.5942]
[1735294131586,3.2559,193.06,192.9,8.2704]
[1735294132889,2.5936,193.0,192.93,2.5944]
[1735294133191,3.2559,193.06,192.93,2.5944]
[1735294133491,3.2559,193.06,192.9,8.2704]
[1735294134494,2.5937,193.0,192.94,2.5944]
[1735294134899,3.2559,193.06,192.9,8.2704]
[1735294135096,3.2559,193.06,192.95,2.5942]
[1735294135596,3.2559,193.06,192.9,4.6504]
[1735294135789,3.2559,193.06,192.94,2.5944]
[1735294136692,2.5936,193.0,192.94,2.5944]
[1735294137199,2.5933,193.03,192.94,2.5944]
[1735294137396,3.2559,193.06,192.9,4.6504]
[1735294137593,0.80372466,193.05,192.83,3.62]
[1735294137796,2.5943,192.95,192.89,2.595]
[1735294138693,2.5943,192.95,192.9,2.5949]
[1735294139289,3.62,192.98,192.84,6.8545]
[1735294139493,1.5486,192.97,192.84,6.8545]
[1735294139697,1.5486,192.97,192.84,3.2345]
[1735294139895,2.5946,192.93,192.86,2.5954]
[1735294140205,1.5486,192.97,192.84,3.2345]
[1735294140598,3.0895,192.97,192.84,3.2345]
[1735294140800,3.0895,192.97,192.86,2.5955]
[1735294141296,1.5486,192.97,192.84,3.2345]
[1735294141498,1.5409,193.03,192.84,3.2345]
[1735294141901,1.5409,193.03,192.93,2.5944]
[1735294142603,2.5939,192.98,192.93,2.5944]
[1735294142803,1.5409,193.03,192.91,2.5947]
[1735294143198,2.5941,192.97,192.91,2.5947]
[1735294143598,2.5941,192.97,192.9,1.5907]
[1735294143795,2.5941,192.97,192.92,2.5947]
[1735294146207,5.2434,193.07,192.9,1.5907]
[1735294146407,9.8004033,193.12,192.9,1.5907]
[1735294146711,2.593,193.05,193.01,2.5935]
[1735294147007,3.62,193.11,192.96,3.62]
[1735294147402,3.62,193.11,192.92,3.62]
[1735294147609,3.62,193.11,192.96,2.5941]
[1735294147610,0.80378731,193.1,192.96,2.5941]
[1735294147906,3.62,193.11,192.96,2.5941]
[1735294148104,2.5939,192.99,192.92,6.2146]
[1735294148300,3.62,193.04,192.92,3.62]
[1735294148606,3.62,193.03,192.9,1.5907]
[1735294148804,2.5942,192.96,192.9,4.1856]
[1735294149109,5.2836,193.02,192.9,1.5907]
[1735294149304,2.5938,192.99,192.93,2.5945]
[1735294149511,5.2836,193.02,192.9,1.5907]
[1735294151407,2.594,192.98,192.93,2.5945]
[1735294151707,2.594,192.98,192.9,1.5907]
[1735294152500,2.594,192.98,192.92,2.5946]
[1735294152706,2.5941,192.97,192.92,2.5946]
[1735294153610,2.5938,192.99,192.93,2.5945]
[1735294154603,2.5938,192.99,192.94,2.5944]
[1735294156011,5.2836,193.02,192.91,1.5475]
[1735294157614,2.5942,192.96,192.91,1.5475]
[1735294158214,2.594,192.97,192.91,4.1423]
[1735294158512,5.2836,193.02,192.91,1.5475]
[1735294158908,2.5938,192.99,192.94,2.5943]
[1735294159111,5.2836,193.02,192.94,2.5943]
[1735294159309,5.2836,193.02,192.91,1.5475]
[1735294159912,2.5942,192.96,192.91,1.5475]
[1735294160314,5.2836,193.02,192.91,1.5475]
[1735294160815,3.62,193.02,192.91,1.5475]
[1735294161015,3.62,193.02,192.92,1.6287]
[1735294161616,2.5935,193.01,192.95,2.5943]
[1735294161818,3.62,193.02,192.95,2.5943]
[1735294162014,3.62,193.02,192.92,1.6287]
[1735294162719,3.62,193.02,192.94,2.5944]
[1735294162720,2.5937,193.0,192.94,2.5944]
[1735294162919,3.62,193.02,192.94,2.5944]
[1735294164125,2.5939,192.98,192.92,1.6287]
[1735294164308,3.62,193.02,192.92,4.2232]
[1735294164813,2.5937,192.99,192.92,4.2232]
[1735294165018,3.62,193.02,192.92,4.2232]
[1735294165619,2.594,192.98,192.92,4.2232]
[1735294165914,2.594,192.98,192.93,2.5945]
[1735294168621,2.5937,192.99,192.95,2.5943]
[1735294168822,2.5937,192.99,192.92,1.6287]
[1735294170519,2.5937,192.99,192.94,2.5944]
[1735294171824,3.62,193.02,192.94,2.5944]
[1735294172526,2.5939,192.98,192.94,2.5944]
[1735294176525,2.594,192.97,192.92,4.2233]
[1735294177522,2.5939,192.99,192.92,1.6287]
[1735294177718,28.70195084,193.03,192.92,1.6287]
[1735294178125,2.5937,193.0,192.95,2.5942]
[1735294178326,7.1614033,193.02,192.95,2.5942]
[1735294179322,32.32195084,193.04,192.95,2.5942]
[1735294179625,2.5938,192.99,192.95,2.5942]
[1735294180024,32.32195084,193.04,192.92,1.6287]
[1735294180225,2.5939,192.98,192.94,2.5944]
[1735294183220,2.5935,193.01,192.95,2.5942]
[1735294183424,28.70195084,193.03,192.95,2.5942]
[1735294183827,2.5937,192.99,192.95,2.5942]
[1735294186632,28.70195084,193.03,192.94,2.5944]
[1735294187132,2.5938,192.99,192.94,2.5944]
[1735294188635,7.1614033,193.02,192.94,2.5944]
[1735294189033,7.1614033,193.02,192.96,2.5941]
[1735294189242,28.70195084,193.03,192.94,3.62]
[1735294190234,28.70195084,193.03,193.0,2.5935]
[1735294190537,28.70195084,193.05,192.94,3.62]
[1735294191035,2.5931,193.04,192.94,3.62]
[1735294191632,2.5931,193.04,192.95,4.72459663]
[1735294191831,2.5931,193.04,192.99,2.5937]
[1735294192131,2.5931,193.04,193.0,4.72459663]
[1735294192331,2.5933,193.03,193.01,4.72459663]
[1735294192528,2.5933,193.03,192.94,3.62]
[1735294192529,7.1614033,193.05,192.94,3.62]
[1735294192728,7.1614033,193.05,192.95,4.72667711]
[1735294192929,7.1614033,193.05,192.96,4.72667711]
[1735294193235,7.1614033,193.05,192.97,6.35376259]
[1735294193429,28.70195084,193.05,192.98,6.24226259]
[1735294193636,28.70195084,193.05,192.99,4.72656259]
[1735294193836,28.70195084,193.05,193.0,4.72656259]
[1735294194142,28.70195084,193.05,193.01,4.72656259]
[1735294194338,28.70195084,193.06,193.02,4.72656259]
[1735294194540,2.5931,193.04,193.0,2.5935]
[1735294194742,2.5931,193.04,193.01,4.72503144]
[1735294195050,2.5931,193.04,192.99,2.5937]
[1735294195343,2.5935,193.01,193.0,4.72512267]
[1735294195944,2.5935,193.01,192.98,1.5157]
[1735294196145,2.5935,193.01,192.99,4.72487925]
[1735294196452,2.5933,193.03,193.0,4.72487925]
[1735294196644,2.5933,193.03,193.01,4.72487925]
[1735294196950,2.5933,193.03,193.02,4.72487925]
[1735294198649,30.21325084,193.07,193.02,4.72487925]
[1735294198650,2.5931,193.04,193.02,4.72487925]
[1735294198848,2.5931,193.04,192.99,2.5937]
[1735294199049,2.5931,193.04,193.0,4.72322918]
[1735294199252,2.5931,193.04,193.01,4.72322918]
[1735294199449,2.5931,193.04,193.02,4.72322918]
[1735294199749,2.5931,193.04,192.94,3.62]
[1735294199750,2.5933,193.03,192.98,2.5939]
[1735294199951,2.5933,193.03,192.99,4.72255656]
[1735294200148,2.5933,193.03,193.0,4.72255656]
[1735294200350,2.5931,193.04,193.01,4.72255656]
[1735294200649,8.6727033,193.07,193.02,4.72255656]
[1735294200851,8.6727033,193.07,192.94,3.62]
[1735294201147,2.5932,193.03,192.94,3.62]
[1735294201348,3.6,193.06,192.95,4.72247538]
[1735294201548,3.6,193.06,192.96,4.72247538]
[1735294201753,3.6,193.06,192.93,1.5485]
[1735294201754,3.6,193.06,192.97,4.72247538]
[1735294201943,3.6,193.06,192.98,4.72247538]
[1735294202252,7.1614033,193.05,192.99,4.72247538]
[1735294202457,2.5937,193.0,192.95,2.5944]
[1735294202751,2.5937,193.0,192.96,4.72402866]
[1735294202952,7.1614033,193.05,192.89,1.5671]
[1735294203148,7.96516455,193.04,192.9,4.72444459]
[1735294203453,7.1614033,193.04,192.91,4.72444459]
[1735294203749,2.5941,192.97,192.92,4.72444459]
[1735294203950,2.5941,192.97,192.89,1.5671]
[1735294204151,2.5941,192.97,192.91,2.5948]
[1735294204445,28.70195084,193.03,192.92,4.72448052]
[1735294204751,2.5939,192.99,192.93,4.72448052]
[1735294204950,2.5939,192.99,192.94,4.72448052]
[1735294205151,2.5939,192.99,192.95,4.72448052]
[1735294205343,2.5939,192.99,192.96,4.72448052]
[1735294205543,2.5939,192.99,192.97,4.72448052]
[1735294205751,2.5939,192.99,192.93,2.5947]
[1735294206050,2.5939,192.99,192.94,4.72409171]
[1735294206250,2.5939,192.99,192.95,4.72409171]
[1735294206450,2.5939,192.99,192.96,4.72409171]
[1735294206655,2.5941,192.98,192.97,4.72409171]
[1735294207052,2.5941,192.98,192.97,4.72390556]
[1735294207447,1.5246,193.02,192.89,1.5671]
[1735294207652,2.5944,192.95,192.9,4.72387559]
[1735294207958,3.6,193.0,192.91,4.72387559]
[1735294208146,2.5947,192.93,192.92,4.72387559]
[1735294208955,3.6,192.94,192.83,2.5959]
[1735294209153,5.1601,192.93,192.84,4.72436877]
[1735294209352,3.6,192.92,192.85,4.72436877]
[1735294209557,2.5955,192.88,192.86,4.72436877]
[1735294209859,5.2657,192.92,192.81,1.74648568]
[1735294210055,2.5953,192.89,192.82,4.71992531]
[1735294210258,5.2657,192.92,192.83,4.71992531]
[1735294210458,5.2657,192.92,192.79,20.47125623]
[1735294210459,5.2657,192.92,192.84,4.71992531]
[1735294210756,5.2657,192.92,192.78,1.51]
[1735294210948,6.3458,192.92,192.79,4.71612328]
[1735294211155,2.5958,192.86,192.8,4.71612328]
[1735294211349,2.5958,192.86,192.81,4.71612328]
[1735294211553,2.5958,192.86,192.79,2.5966]
[1735294211756,2.5958,192.86,192.8,4.71106216]
[1735294211952,2.5959,192.85,192.81,4.71106216]
[1735294212159,6.3458,192.92,192.82,4.71106216]
[1735294212361,6.3458,192.92,192.69,1.6416]
[1735294212561,0.80373079,192.91,192.7,8.31077706]
[1735294212757,0.80373079,192.91,192.71,4.71077706]
[1735294213062,0.80373079,192.91,192.72,4.71077706]
[1735294213360,0.80373079,192.91,192.69,4.7282]
[1735294213361,2.5958,192.85,192.75,2.597]
[1735294213556,3.6,192.85,192.76,4.70170425]
[1735294213757,3.2113,192.84,192.77,4.70170425]
[1735294213952,2.5965,192.8,192.74,2.5973]
[1735294214161,1.0801,192.92,192.75,4.70180712]
[1735294214353,2.5958,192.86,192.8,2.5965]
[1735294215068,6.8113,192.91,192.7,3.6]
[1735294215359,6.8113,192.91,192.71,4.69762296]
[1735294215559,6.8113,192.91,192.72,4.69762296]
[1735294215759,6.8113,192.91,192.73,4.69762296]
[1735294215960,6.8113,192.91,192.74,4.69762296]
[1735294216161,6.8113,192.91,192.75,4.69762296]
[1735294216357,3.2113,192.91,192.76,9.87832296]
[1735294216554,3.6,192.96,192.77,11.55012296]
[1735294216755,3.0393,192.98,192.78,4.69762296]
[1735294216956,2.5945,192.95,192.9,2.5951]
[1735294217361,2.5945,192.95,192.85,3.6]
[1735294217561,2.5943,192.97,192.86,6.2728964]
[1735294217761,3.0393,192.98,192.87,4.6921964]
[1735294217961,3.0393,192.98,192.88,4.6921964]
[1735294218164,2.5946,192.95,192.89,4.69195669]
[1735294218463,3.0393,192.98,192.88,2.5953]
[1735294218659,3.0393,192.98,192.86,4.67]
[1735294218865,3.0393,192.98,192.87,4.69221701]
[1735294219068,3.0393,192.98,192.86,4.67]
[1735294219365,2.5945,192.95,192.87,4.69222749]
[1735294219564,3.0393,192.98,192.86,4.67]
[1735294219763,3.0393,192.98,192.87,4.69214218]
[1735294219967,3.0393,192.98,192.86,1.5807]
[1735294220564,0.80444003,192.97,192.73,3.1197]
[1735294220765,0.80444003,192.97,192.74,9.80205953]
[1735294220961,1.0813,192.96,192.77,2.5969]
[1735294221168,0.80444003,192.95,192.77,2.5969]
[1735294221463,2.5961,192.83,192.77,2.5969]
[1735294221663,3.6,192.87,192.76,2.597]
[1735294222864,3.1212,192.86,192.76,2.597]
[1735294223065,3.1212,192.86,192.75,3.6]
[1735294223366,3.1212,192.86,192.74,4.1066]
[1735294223566,3.1212,192.86,192.75,4.68749847]
[1735294223767,3.1212,192.86,192.74,4.1066]
[1735294224071,3.1212,192.86,192.75,4.68761578]
[1735294224368,2.5965,192.8,192.74,4.1066]
[1735294227269,2.5967,192.79,192.74,1.5094]
[1735294227471,3.1212,192.86,192.74,1.5094]
[1735294227671,4.2018,192.86,192.7,3.6]
[1735294227871,4.2018,192.86,192.71,4.68099777]
[1735294228171,4.2018,192.86,192.73,2.5974]
[1735294228571,2.5966,192.8,192.74,2.5972]
[1735294229365,4.2018,192.86,192.7,3.6]
[1735294229574,4.2018,192.86,192.73,2.5974]
[1735294230276,2.5967,192.79,192.73,2.5974]
[1735294230971,3.6,192.81,192.7,2.5977]
[1735294231165,3.6,192.81,192.69,1.6004]
[1735294231571,2.5975,192.73,192.69,1.6004]
[1735294232178,3.6,192.81,192.69,4.1983]
[1735294232374,3.6,192.81,192.69,1.6004]
[1735294232776,2.5969,192.77,192.7,2.5977]
[1735294232976,3.6,192.81,192.69,1.6004]
[1735294233179,3.6,192.81,192.61,3.1659]
[1735294233378,3.6,192.81,192.67,2.5981]
[1735294234179,3.6,192.81,192.62,5.1394]
[1735294234380,2.5972,192.75,192.69,2.5979]
[1735294234579,3.6,192.81,192.69,2.5979]
[1735294235277,0.80547342,192.8,192.63,7.26803095]
[1735294235477,0.80547342,192.8,192.58,9.46800871]
[1735294235678,0.80547342,192.8,192.59,4.66740871]
[1735294235877,0.80547342,192.8,192.58,4.8006]
[1735294236075,0.80547342,192.8,192.59,4.66791422]
[1735294236275,0.80547342,192.8,192.58,4.8006]
[1735294236977,2.5982,192.68,192.58,4.8006]
[1735294237175,3.6,192.69,192.58,4.8006]
[1735294237482,3.6,192.69,192.58,3.174]
[1735294237683,2.5982,192.67,192.59,2.5992]
[1735294237878,3.6,192.69,192.59,2.5992]
[1735294238182,2.5988,192.63,192.58,3.174]
[1735294238378,3.6,192.69,192.58,1.5391]
[1735294238679,3.2163,192.68,192.58,1.5391]
[1735294239273,2.5989,192.63,192.58,1.5391]
[1735294239481,3.2163,192.68,192.54,4.659355]
[1735294239781,3.2163,192.68,192.53,1.5592]
[1735294239980,3.2163,192.68,192.54,4.65937843]
[1735294240182,3.2163,192.68,192.55,4.65937843]
[1735294240377,3.2163,192.68,192.53,1.5592]
[1735294240579,3.2163,192.68,192.54,4.66026464]
[1735294240778,3.2163,192.68,192.57,2.5994]
[1735294240779,2.5988,192.64,192.57,2.5994]
[1735294241181,3.2163,192.68,192.57,2.5994]
[1735294241482,2.5989,192.63,192.57,2.5994]
[1735294241678,3.2163,192.68,192.53,1.5592]
[1735294241886,3.6,192.64,192.55,2.5998]
[1735294242183,3.6,192.64,192.53,1.5592]
[1735294242376,3.6,192.64,192.54,4.65771346]
[1735294242581,3.6,192.64,192.53,1.5592]
[1735294242784,3.6,192.64,192.54,4.65522142]
[1735294242988,2.599,192.61,192.56,2.5997]
[1735294243180,3.6,192.64,192.56,2.5997]
[1735294243488,3.6,192.64,192.53,1.5592]
[1735294243683,2.5992,192.61,192.54,7.25470874]
[1735294243883,2.5992,192.61,192.54,2.5999]
[1735294244183,3.6,192.64,192.53,1.5592]
[1735294244384,3.6,192.64,192.56,2.5995]
[1735294245585,2.5989,192.62,192.56,2.5995]
[1735294250484,3.6,192.64,192.4,3.6]
[1735294250683,3.6,192.64,192.48,3.2524]
[1735294250988,3.6,192.64,192.49,6.33051013]
[1735294251293,3.6,192.63,192.5,4.6576288]
[1735294251482,3.6,192.62,192.51,4.6576288]
[1735294251687,3.6,192.63,192.52,4.6576288]
[1735294251890,2.5993,192.59,192.53,7.2576288]
[1735294252084,2.5993,192.59,192.53,2.6]
[1735294252291,3.6,192.62,192.49,1.6725]
[1735294252590,3.6,192.62,192.5,4.66022152]
[1735294252795,3.6,192.62,192.51,4.66022152]
[1735294252995,2.5993,192.59,192.53,2.6]
[1735294253195,2.5993,192.59,192.49,1.6725]
[1735294253489,2.5993,192.59,192.5,4.66008386]
[1735294253795,3.6,192.61,192.53,2.5999]
[1735294254092,2.5994,192.58,192.53,2.5999]
[1735294254295,3.6,192.61,192.51,2.6001]
[1735294254495,2.5995,192.57,192.52,4.66019919]
[1735294254690,2.5995,192.57,192.49,1.6725]
[1735294254888,2.5995,192.57,192.5,4.66094752]
[1735294255086,2.5995,192.57,192.51,4.66094752]
[1735294255295,2.5995,192.57,192.52,4.66094752]
[1735294255493,2.5995,192.57,192.52,2.6001]
[1735294255692,3.6,192.6,192.52,2.6001]
[1735294255892,3.6,192.6,192.49,1.6725]
[1735294256096,3.6,192.6,192.5,7.26088757]
[1735294256297,2.6,192.54,192.49,1.6725]
[1735294256497,3.6,192.6,192.5,4.66073134]
[1735294256687,3.6,192.6,192.49,1.6725]
[1735294256891,3.6,192.6,192.5,4.65962962]
[1735294257185,3.6,192.6,192.49,1.6725]
[1735294257592,2.6001,192.52,192.49,1.6725]
[1735294257791,3.6,192.6,192.49,1.6725]
[1735294257988,3.6,192.6,192.36,3.1736]
[1735294257989,3.2271,192.59,192.36,3.1736]
[1735294258301,3.2271,192.59,192.37,9.825446]
[1735294258498,4.3136,192.59,192.38,4.65672564]
[1735294258699,4.3136,192.59,192.39,4.65672564]
[1735294258899,4.3136,192.59,192.4,4.65672564]
[1735294259199,4.3136,192.59,192.41,4.65672564]
[1735294259400,4.3136,192.59,192.42,4.65672564]
[1735294259599,2.6007,192.49,192.42,2.6015]
[1735294260102,2.6007,192.49,192.43,2.6013]
[1735294260302,6.2004,192.5,192.37,1.567]
[1735294260498,6.2004,192.5,192.38,4.65538767]
[1735294260795,3.6,192.5,192.39,4.65581179]
[1735294260990,3.6,192.5,192.37,1.567]
[1735294260991,3.6,192.5,192.4,4.65581179]
[1735294261194,3.6,192.5,192.37,1.567]
[1735294261394,3.6,192.5,192.38,4.65598663]